[Event "Late-Titled-Tuesday-Blitz-June-18-2024"]
[Site "Chess.com"]
[Date "2024.06.18"]
[Round "1"]
[White "SilverCityIndigo"]
[Black "Bryanl106"]
[Result "0-1"]
[WhiteElo "2395"]
[BlackElo "2720"]
[TimeControl "180+1"]
[EndTime "14:06:05 PDT"]
[Termination "Bryanl106 won by resignation"]

1. d4 {[%clk 0:03:00.9]} 1... Nf6 {[%clk 0:02:59.7]} 2. Nf3 {[%clk 0:03:01.2]}
2... g6 {[%clk 0:02:54.8]} 3. c4 {[%clk 0:03:01.7]} 3... Bg7 {[%clk 0:02:54.4]}
4. g3 {[%clk 0:03:02.4]} 4... O-O {[%clk 0:02:54.8]} 5. Bg2 {[%clk 0:03:03.1]}
5... d6 {[%clk 0:02:55.5]} 6. O-O {[%clk 0:03:03.6]} 6... Nc6 {[%clk 0:02:56.2]}
7. b3 {[%clk 0:03:03.9]} 7... Bg4 {[%clk 0:02:50.3]} 8. Bb2 {[%clk 0:03:02.4]}
8... Nd7 {[%clk 0:02:47.7]} 9. Nbd2 {[%clk 0:02:59.8]} 9... e5 {[%clk
0:02:47.2]} 10. d5 {[%clk 0:02:57.2]} 10... Ne7 {[%clk 0:02:45.8]} 11. Ne1
{[%clk 0:02:47]} 11... f5 {[%clk 0:02:33]} 12. h3 {[%clk 0:02:40.4]} 12... Bh5
{[%clk 0:02:33.1]} 13. f4 {[%clk 0:02:34.3]} 13... h6 {[%clk 0:02:22.6]} 14. Nc2
{[%clk 0:01:50.2]} 14... g5 {[%clk 0:02:21.1]} 15. fxg5 {[%clk 0:01:26.9]} 15...
hxg5 {[%clk 0:02:22]} 16. g4 {[%clk 0:01:21.8]} 16... fxg4 {[%clk 0:02:19.2]}
17. e4 {[%clk 0:01:19.5]} 17... Bf7 {[%clk 0:02:07.5]} 18. Qxg4 {[%clk
0:01:16.1]} 18... Ng6 {[%clk 0:02:05.8]} 19. Ne3 {[%clk 0:01:06.5]} 19... Nf4
{[%clk 0:02:01.1]} 20. Nf5 {[%clk 0:01:03.6]} 20... Bh5 {[%clk 0:02:00]} 21.
Rxf4 {[%clk 0:00:59.1]} 21... Bxg4 {[%clk 0:01:57.8]} 22. Rxg4 {[%clk 0:01:00]}
22... Rf6 {[%clk 0:01:25.1]} 23. Rxg5 {[%clk 0:00:54.1]} 23... Rxf5 {[%clk
0:01:14.7]} 24. Rxf5 {[%clk 0:00:55]} 24... Bh6 {[%clk 0:01:10.8]} 25. Nf3
{[%clk 0:00:53.8]} 25... Nc5 {[%clk 0:01:10.5]} 26. Nh2 {[%clk 0:00:44.1]} 26...
Be3+ {[%clk 0:01:02.6]} 27. Kh1 {[%clk 0:00:44.1]} 27... Qh4 {[%clk 0:00:59.6]}
28. Ng4 {[%clk 0:00:41.7]} 28... Bf4 {[%clk 0:00:56.7]} 29. Rf1 {[%clk
0:00:16.5]} 29... Rf8 {[%clk 0:00:54.8]} 30. Rh5 {[%clk 0:00:14.9]} 30... Qxh5
{[%clk 0:00:52.1]} 0-1

[Event "Late-Titled-Tuesday-Blitz-June-18-2024"]
[Site "Chess.com"]
[Date "2024.06.18"]
[Round "1"]
[White "GMG"]
[Black "RichardShtivelband"]
[Result "1-0"]
[WhiteElo "2671"]
[BlackElo "2369"]
[TimeControl "180+1"]
[EndTime "14:06:05 PDT"]
[Termination "GMG won by resignation"]

1. d4 {[%clk 0:03:00.9]} 1... Nf6 {[%clk 0:02:56.1]} 2. g3 {[%clk 0:03:00.9]}
2... c5 {[%clk 0:02:54.5]} 3. d5 {[%clk 0:03:00.4]} 3... e6 {[%clk 0:02:54.1]}
4. c4 {[%clk 0:02:54.7]} 4... exd5 {[%clk 0:02:52.3]} 5. cxd5 {[%clk 0:02:55.5]}
5... d6 {[%clk 0:02:51.8]} 6. Nc3 {[%clk 0:02:55.1]} 6... g6 {[%clk 0:02:50.9]}
7. Bg2 {[%clk 0:02:55.3]} 7... Bg7 {[%clk 0:02:51]} 8. Nf3 {[%clk 0:02:55.7]}
8... O-O {[%clk 0:02:51.1]} 9. O-O {[%clk 0:02:55.3]} 9... Re8 {[%clk
0:02:51.1]} 10. Bf4 {[%clk 0:02:51.5]} 10... a6 {[%clk 0:02:39.4]} 11. a4 {[%clk
0:02:49.8]} 11... Qc7 {[%clk 0:02:24.6]} 12. Rc1 {[%clk 0:02:15.6]} 12... Nbd7
{[%clk 0:01:55.1]} 13. Re1 {[%clk 0:02:09.5]} 13... Rb8 {[%clk 0:01:30.1]} 14.
e4 {[%clk 0:02:05.3]} 14... b5 {[%clk 0:01:25.8]} 15. axb5 {[%clk 0:02:04.2]}
15... axb5 {[%clk 0:01:26.7]} 16. b4 {[%clk 0:02:04.5]} 16... Nh5 {[%clk
0:01:01.8]} 17. Be3 {[%clk 0:01:51]} 17... Qb7 {[%clk 0:00:15.7]} 18. bxc5
{[%clk 0:01:36]} 18... dxc5 {[%clk 0:00:15.2]} 19. g4 {[%clk 0:01:29.1]} 19...
Nhf6 {[%clk 0:00:14.1]} 20. Bf4 {[%clk 0:01:27.4]} 20... Ra8 {[%clk 0:00:14.3]}
21. e5 {[%clk 0:01:24.2]} 21... Nxg4 {[%clk 0:00:11.4]} 22. e6 {[%clk
0:01:17.9]} 22... Ndf6 {[%clk 0:00:11.4]} 23. Ng5 {[%clk 0:01:15.8]} 23... fxe6
{[%clk 0:00:10.1]} 24. dxe6 {[%clk 0:01:14.6]} 24... Qa7 {[%clk 0:00:09.7]} 25.
Nxb5 {[%clk 0:01:12.1]} 25... Qa5 {[%clk 0:00:09.2]} 26. Nc7 {[%clk 0:01:06.6]}
26... Qa2 {[%clk 0:00:02]} 27. Rc2 {[%clk 0:01:05.1]} 27... Qb3 {[%clk
0:00:01.9]} 28. Nxe8 {[%clk 0:01:02.1]} 1-0

[Event "Late-Titled-Tuesday-Blitz-June-18-2024"]
[Site "Chess.com"]
[Date "2024.06.18"]
[Round "1"]
[White "dennisodessa"]
[Black "tortorchess"]
[Result "1-0"]
[WhiteElo "2600"]
[BlackElo "2224"]
[TimeControl "180+1"]
[EndTime "14:06:07 PDT"]
[Termination "dennisodessa won by resignation"]

1. d4 {[%clk 0:03:00.4]} 1... d5 {[%clk 0:02:59.9]} 2. c4 {[%clk 0:02:59.7]}
2... c6 {[%clk 0:02:59.8]} 3. Nf3 {[%clk 0:02:59.5]} 3... Nf6 {[%clk 0:02:59.8]}
4. Nbd2 {[%clk 0:02:59]} 4... e6 {[%clk 0:03:00]} 5. e3 {[%clk 0:02:59.2]} 5...
Nbd7 {[%clk 0:03:00.1]} 6. b3 {[%clk 0:02:59.5]} 6... Be7 {[%clk 0:03:00.3]} 7.
Bb2 {[%clk 0:03:00.1]} 7... O-O {[%clk 0:03:00.5]} 8. Bd3 {[%clk 0:03:00.7]}
8... b6 {[%clk 0:03:00.4]} 9. O-O {[%clk 0:03:00.7]} 9... Bb7 {[%clk 0:03:00.5]}
10. Ne5 {[%clk 0:03:01.2]} 10... Rc8 {[%clk 0:02:58.4]} 11. f4 {[%clk
0:03:01.3]} 11... c5 {[%clk 0:02:58.2]} 12. Rc1 {[%clk 0:03:00.8]} 12... h6
{[%clk 0:02:55.7]} 13. Qe2 {[%clk 0:02:58.8]} 13... Ne4 {[%clk 0:02:30.2]} 14.
Nxe4 {[%clk 0:02:56.5]} 14... dxe4 {[%clk 0:02:31.1]} 15. Bb1 {[%clk 0:02:57.3]}
15... Nf6 {[%clk 0:02:21.7]} 16. Rfd1 {[%clk 0:02:48.3]} 16... Qc7 {[%clk
0:02:21.3]} 17. Ng4 {[%clk 0:02:46]} 17... Rfd8 {[%clk 0:02:15.5]} 18. dxc5
{[%clk 0:02:42.6]} 18... Qxc5 {[%clk 0:01:55.6]} 19. Bxf6 {[%clk 0:02:35.7]}
19... Bxf6 {[%clk 0:01:55.3]} 20. Nxf6+ {[%clk 0:02:35.8]} 20... gxf6 {[%clk
0:01:56.2]} 21. Kf2 {[%clk 0:02:27.8]} 21... Kh7 {[%clk 0:01:55]} 22. Qb2 {[%clk
0:02:17.9]} 22... Qf5 {[%clk 0:01:52.4]} 23. h3 {[%clk 0:02:12.9]} 23... Rg8
{[%clk 0:01:50.6]} 24. Rd7 {[%clk 0:02:05.7]} 24... Qg6 {[%clk 0:01:48.9]} 25.
g4 {[%clk 0:02:04]} 25... Bc6 {[%clk 0:01:45.9]} 26. Rxa7 {[%clk 0:02:02.5]}
26... f5 {[%clk 0:01:45.8]} 27. Rg1 {[%clk 0:02:01]} 27... Rcd8 {[%clk
0:01:34.7]} 28. Qc1 {[%clk 0:01:24.3]} 28... Qf6 {[%clk 0:01:32.2]} 29. Kg3
{[%clk 0:01:14.7]} 29... fxg4 {[%clk 0:01:29.4]} 30. hxg4 {[%clk 0:01:15.6]}
30... Qg6 {[%clk 0:01:27]} 31. Kh2 {[%clk 0:01:11.1]} 31... Rg7 {[%clk
0:01:26.5]} 32. Qe1 {[%clk 0:01:09.2]} 32... Qf6 {[%clk 0:01:24.7]} 33. b4
{[%clk 0:01:05.6]} 33... e5 {[%clk 0:01:22.7]} 34. b5 {[%clk 0:01:03.4]} 34...
Ba8 {[%clk 0:01:20]} 35. Rxa8 {[%clk 0:01:02.6]} 35... Rxa8 {[%clk 0:01:18.6]}
36. Bxe4+ {[%clk 0:01:03.1]} 36... Kh8 {[%clk 0:01:18.3]} 37. Bxa8 {[%clk
0:01:04]} 37... exf4 {[%clk 0:01:18.3]} 38. Qf2 {[%clk 0:00:50.5]} 38... f3
{[%clk 0:01:11]} 39. Bxf3 {[%clk 0:00:48.5]} 39... Rg5 {[%clk 0:01:07.2]} 40.
Qg3 {[%clk 0:00:44.2]} 40... Kg7 {[%clk 0:01:06.2]} 41. Qf4 {[%clk 0:00:42.2]}
41... Qd8 {[%clk 0:01:02.1]} 42. Qd4+ {[%clk 0:00:41.4]} 42... Qxd4 {[%clk
0:01:01.1]} 43. exd4 {[%clk 0:00:42.3]} 1-0

[Event "Late-Titled-Tuesday-Blitz-June-18-2024"]
[Site "Chess.com"]
[Date "2024.06.18"]
[Round "1"]
[White "LaStreetCmaMaison"]
[Black "FMalexhdez"]
[Result "1-0"]
[WhiteElo "2616"]
[BlackElo "2277"]
[TimeControl "180+1"]
[EndTime "14:06:10 PDT"]
[Termination "LaStreetCmaMaison won on time"]

1. e4 {[%clk 0:02:59.4]} 1... c5 {[%clk 0:02:59.3]} 2. Nf3 {[%clk 0:02:54.5]}
2... d6 {[%clk 0:02:59.4]} 3. d4 {[%clk 0:02:54.7]} 3... cxd4 {[%clk 0:02:58.9]}
4. Nxd4 {[%clk 0:02:55.3]} 4... Nf6 {[%clk 0:02:58.5]} 5. Nc3 {[%clk 0:02:54.5]}
5... a6 {[%clk 0:02:59]} 6. Bg5 {[%clk 0:02:53.2]} 6... e6 {[%clk 0:02:58.9]} 7.
f4 {[%clk 0:02:52.3]} 7... Be7 {[%clk 0:02:58.6]} 8. Qf3 {[%clk 0:02:51.9]} 8...
Qc7 {[%clk 0:02:55.9]} 9. O-O-O {[%clk 0:02:52.2]} 9... Nbd7 {[%clk 0:02:55]}
10. g4 {[%clk 0:02:52.4]} 10... b5 {[%clk 0:02:53.9]} 11. Bxf6 {[%clk
0:02:50.4]} 11... Nxf6 {[%clk 0:02:53.1]} 12. g5 {[%clk 0:02:46.3]} 12... Nd7
{[%clk 0:02:52.8]} 13. h4 {[%clk 0:02:37.5]} 13... Bb7 {[%clk 0:02:52]} 14. Kb1
{[%clk 0:02:35.9]} 14... Rc8 {[%clk 0:02:42.4]} 15. a3 {[%clk 0:02:33.2]} 15...
Nb6 {[%clk 0:02:37.3]} 16. f5 {[%clk 0:02:26.3]} 16... e5 {[%clk 0:02:33.3]} 17.
Nde2 {[%clk 0:02:04.8]} 17... Nc4 {[%clk 0:02:18.9]} 18. f6 {[%clk 0:02:03.2]}
18... Bf8 {[%clk 0:02:14.9]} 19. Bh3 {[%clk 0:02:01.4]} 19... Rb8 {[%clk
0:01:56.7]} 20. h5 {[%clk 0:01:42]} 20... b4 {[%clk 0:00:15.8]} 21. axb4 {[%clk
0:01:39.9]} 21... d5 {[%clk 0:00:12.6]} 22. fxg7 {[%clk 0:01:21.1]} 22... Bxg7
{[%clk 0:00:11.8]} 23. h6 {[%clk 0:01:21.9]} 23... Bf8 {[%clk 0:00:09.8]} 24.
Nxd5 {[%clk 0:01:02.7]} 24... Bxd5 {[%clk 0:00:08.5]} 25. Rxd5 {[%clk
0:01:03.6]} 25... Rxb4 {[%clk 0:00:06.4]} 26. Bd7+ {[%clk 0:01:00]} 26... Qxd7
{[%clk 0:00:02]} 27. Rxd7 {[%clk 0:01:00.9]} 27... Kxd7 {[%clk 0:00:02.3]} 28.
Qxf7+ {[%clk 0:00:59.2]} 1-0

[Event "Late-Titled-Tuesday-Blitz-June-18-2024"]
[Site "Chess.com"]
[Date "2024.06.18"]
[Round "1"]
[White "ATM622"]
[Black "DanielNaroditsky"]
[Result "0-1"]
[WhiteElo "2533"]
[BlackElo "3149"]
[TimeControl "180+1"]
[EndTime "14:06:15 PDT"]
[Termination "DanielNaroditsky won by resignation"]

1. d4 {[%clk 0:03:00.9]} 1... Nf6 {[%clk 0:02:56.7]} 2. c4 {[%clk 0:02:59.8]}
2... g6 {[%clk 0:02:55.6]} 3. g3 {[%clk 0:02:58.5]} 3... Bg7 {[%clk 0:02:52.5]}
4. Bg2 {[%clk 0:02:57.4]} 4... O-O {[%clk 0:02:53.4]} 5. Nf3 {[%clk 0:02:56.3]}
5... d6 {[%clk 0:02:52.8]} 6. O-O {[%clk 0:02:56.2]} 6... Nbd7 {[%clk
0:02:53.6]} 7. Nc3 {[%clk 0:02:54.4]} 7... e5 {[%clk 0:02:53.2]} 8. Qc2 {[%clk
0:02:51.5]} 8... exd4 {[%clk 0:02:53]} 9. Nxd4 {[%clk 0:02:51.5]} 9... Nb6
{[%clk 0:02:53.9]} 10. b3 {[%clk 0:02:47.3]} 10... c5 {[%clk 0:02:54.3]} 11. Nf3
{[%clk 0:02:39.7]} 11... Bf5 {[%clk 0:02:54.2]} 12. e4 {[%clk 0:02:12.9]} 12...
Nxe4 {[%clk 0:02:51.7]} 13. Nxe4 {[%clk 0:02:13.2]} 13... Bxa1 {[%clk
0:02:52.4]} 14. Bg5 {[%clk 0:02:07.1]} 14... f6 {[%clk 0:02:48.1]} 15. Bh6
{[%clk 0:02:06.2]} 15... Re8 {[%clk 0:02:44.9]} 16. Nh4 {[%clk 0:02:02.9]} 16...
Bxe4 {[%clk 0:01:59.3]} 17. Bxe4 {[%clk 0:02:02.1]} 17... f5 {[%clk 0:01:59.3]}
18. Bxb7 {[%clk 0:01:59.1]} 18... Rb8 {[%clk 0:01:59.5]} 19. Bc6 {[%clk
0:01:58.5]} 19... Bf6 {[%clk 0:01:55.2]} 20. Bxe8 {[%clk 0:01:46]} 20... Qxe8
{[%clk 0:01:56.1]} 21. Nf3 {[%clk 0:01:43.6]} 21... Qc6 {[%clk 0:01:54.3]} 22.
Ng5 {[%clk 0:01:40.1]} 22... Re8 {[%clk 0:01:54]} 23. Rd1 {[%clk 0:01:35.7]}
23... Nd7 {[%clk 0:01:42.3]} 24. Qd3 {[%clk 0:01:23.7]} 24... Ne5 {[%clk
0:01:42.5]} 25. Qd5+ {[%clk 0:01:22.2]} 25... Qxd5 {[%clk 0:01:42.8]} 26. Rxd5
{[%clk 0:01:19.7]} 26... Bxg5 {[%clk 0:01:42.1]} 27. Bxg5 {[%clk 0:01:17.5]}
27... Nf3+ {[%clk 0:01:41.8]} 28. Kg2 {[%clk 0:01:18.4]} 28... Nxg5 {[%clk
0:01:42.4]} 29. Rxd6 {[%clk 0:01:18.8]} 29... Re2 {[%clk 0:01:39.6]} 30. Rd8+
{[%clk 0:01:12.7]} 30... Kf7 {[%clk 0:01:36.7]} 31. Rd7+ {[%clk 0:01:12.7]}
31... Kf6 {[%clk 0:01:34.9]} 32. Rxa7 {[%clk 0:01:12.1]} 32... Ne4 {[%clk
0:01:32.1]} 33. a4 {[%clk 0:01:05.9]} 33... Rxf2+ {[%clk 0:01:32.1]} 34. Kg1
{[%clk 0:01:05.7]} 34... Ra2 {[%clk 0:01:31.2]} 35. a5 {[%clk 0:01:03.5]} 35...
g5 {[%clk 0:01:30.3]} 36. a6 {[%clk 0:01:02.4]} 36... Ke5 {[%clk 0:01:22.5]} 37.
h4 {[%clk 0:00:40.2]} 37... g4 {[%clk 0:01:21.2]} 38. Rxh7 {[%clk 0:00:24.5]}
38... Nxg3 {[%clk 0:01:21]} 39. a7 {[%clk 0:00:22.4]} 39... Kf4 {[%clk
0:01:20.6]} 40. Rd7 {[%clk 0:00:20.6]} 40... Ne4 {[%clk 0:01:18]} 41. h5 {[%clk
0:00:19.8]} 41... g3 {[%clk 0:01:16]} 42. Rf7 {[%clk 0:00:15.6]} 42... Ng5
{[%clk 0:01:13.3]} 43. Rd7 {[%clk 0:00:13.9]} 43... Nf3+ {[%clk 0:01:12.8]} 0-1

[Event "Late-Titled-Tuesday-Blitz-June-18-2024"]
[Site "Chess.com"]
[Date "2024.06.18"]
[Round "1"]
[White "NikitaShnadrygin"]
[Black "AlphaPerseii"]
[Result "0-1"]
[WhiteElo "2734"]
[BlackElo "2431"]
[TimeControl "180+1"]
[EndTime "14:06:15 PDT"]
[Termination "AlphaPerseii won by resignation"]

1. e4 {[%clk 0:02:58.3]} 1... c5 {[%clk 0:02:58.5]} 2. Nf3 {[%clk 0:02:58.3]}
2... Nc6 {[%clk 0:02:59.2]} 3. d4 {[%clk 0:02:58.9]} 3... cxd4 {[%clk
0:03:00.1]} 4. Nxd4 {[%clk 0:02:59.8]} 4... Nf6 {[%clk 0:03:00]} 5. Nc3 {[%clk
0:03:00.5]} 5... e5 {[%clk 0:03:00.7]} 6. Ndb5 {[%clk 0:03:00.5]} 6... d6 {[%clk
0:03:01.2]} 7. Bg5 {[%clk 0:03:01]} 7... a6 {[%clk 0:03:01.5]} 8. Na3 {[%clk
0:03:01.7]} 8... b5 {[%clk 0:03:02.2]} 9. Nd5 {[%clk 0:03:02.4]} 9... Be7 {[%clk
0:03:02.5]} 10. Bxf6 {[%clk 0:03:03.2]} 10... Bxf6 {[%clk 0:03:03.2]} 11. c3
{[%clk 0:03:03.9]} 11... Ne7 {[%clk 0:03:03.7]} 12. Nc2 {[%clk 0:03:04.5]} 12...
Nxd5 {[%clk 0:03:02.7]} 13. Qxd5 {[%clk 0:03:04.2]} 13... Ra7 {[%clk 0:02:36.5]}
14. Nb4 {[%clk 0:03:00.9]} 14... Bb7 {[%clk 0:02:29.4]} 15. Qd3 {[%clk
0:03:00.9]} 15... O-O {[%clk 0:02:12.4]} 16. Be2 {[%clk 0:03:00.7]} 16... Bg5
{[%clk 0:02:01.9]} 17. O-O {[%clk 0:03:00.4]} 17... Ba8 {[%clk 0:01:34]} 18.
Rfd1 {[%clk 0:02:59.4]} 18... Kh8 {[%clk 0:00:52.4]} 19. Bf3 {[%clk 0:02:47.6]}
19... Rd7 {[%clk 0:00:29.9]} 20. Nxa6 {[%clk 0:02:43.3]} 20... f5 {[%clk
0:00:28.4]} 21. Nb4 {[%clk 0:02:39.9]} 21... fxe4 {[%clk 0:00:17.2]} 22. Bxe4
{[%clk 0:02:40.2]} 22... Bxe4 {[%clk 0:00:17.3]} 23. Qxe4 {[%clk 0:02:41.1]}
23... Bf4 {[%clk 0:00:15]} 24. Nd5 {[%clk 0:02:39]} 24... Qh4 {[%clk 0:00:13]}
25. Nxf4 {[%clk 0:02:37.6]} 25... Rxf4 {[%clk 0:00:10.9]} 26. Qa8+ {[%clk
0:02:37.4]} 26... Rd8 {[%clk 0:00:11.1]} 27. Qa7 {[%clk 0:02:36.6]} 27... Rdf8
{[%clk 0:00:09]} 28. g3 {[%clk 0:02:35.8]} 28... Qg4 {[%clk 0:00:09.6]} 29. Rd2
{[%clk 0:02:34.4]} 29... R4f6 {[%clk 0:00:09.4]} 30. a4 {[%clk 0:02:27.5]} 30...
b4 {[%clk 0:00:09]} 31. a5 {[%clk 0:02:21.2]} 31... h5 {[%clk 0:00:07.7]} 32. a6
{[%clk 0:02:19.6]} 32... h4 {[%clk 0:00:08]} 33. Qe3 {[%clk 0:02:17.3]} 33...
Rf3 {[%clk 0:00:06.9]} 34. Qe1 {[%clk 0:02:17.5]} 34... h3 {[%clk 0:00:02.9]}
35. a7 {[%clk 0:02:17.1]} 35... Ra8 {[%clk 0:00:02.8]} 36. Qe2 {[%clk
0:02:13.1]} 36... e4 {[%clk 0:00:01.8]} 37. Rd4 {[%clk 0:02:12]} 37... d5 {[%clk
0:00:01.7]} 38. Rxd5 {[%clk 0:02:10.5]} 38... Rxg3+ {[%clk 0:00:01.8]} 39. hxg3
{[%clk 0:02:10.5]} 39... Qxe2 {[%clk 0:00:02.7]} 40. Rf5 {[%clk 0:02:02.5]}
40... g6 {[%clk 0:00:02]} 41. Rf4 {[%clk 0:02:02.5]} 41... g5 {[%clk 0:00:02.1]}
42. Rf6 {[%clk 0:02:00.4]} 42... e3 {[%clk 0:00:02.4]} 43. cxb4 {[%clk 0:01:56]}
43... Kg7 {[%clk 0:00:02.8]} 44. Rf5 {[%clk 0:01:50]} 44... Qxb2 {[%clk
0:00:03]} 45. Raa5 {[%clk 0:01:44]} 45... e2 {[%clk 0:00:03.2]} 46. Rxg5+ {[%clk
0:01:43.2]} 46... Kf6 {[%clk 0:00:03.8]} 47. Rgf5+ {[%clk 0:01:43.8]} 47... Ke6
{[%clk 0:00:04.4]} 0-1

[Event "Late-Titled-Tuesday-Blitz-June-18-2024"]
[Site "Chess.com"]
[Date "2024.06.18"]
[Round "1"]
[White "esrosenberg"]
[Black "AldokhinIvan"]
[Result "0-1"]
[WhiteElo "2323"]
[BlackElo "2636"]
[TimeControl "180+1"]
[EndTime "14:06:16 PDT"]
[Termination "AldokhinIvan won by resignation"]

1. e4 {[%clk 0:03:00]} 1... c5 {[%clk 0:02:59.1]} 2. Nc3 {[%clk 0:02:59.1]} 2...
e6 {[%clk 0:03:00]} 3. Nge2 {[%clk 0:02:58.5]} 3... a6 {[%clk 0:03:00.4]} 4. g3
{[%clk 0:02:58.2]} 4... Nc6 {[%clk 0:03:00.4]} 5. Bg2 {[%clk 0:02:58.7]} 5... g6
{[%clk 0:03:00.6]} 6. d4 {[%clk 0:02:56.6]} 6... cxd4 {[%clk 0:03:00.3]} 7. Nxd4
{[%clk 0:02:56.6]} 7... Bg7 {[%clk 0:03:00.5]} 8. Nxc6 {[%clk 0:02:53.7]} 8...
bxc6 {[%clk 0:03:00.4]} 9. O-O {[%clk 0:02:54.2]} 9... Ne7 {[%clk 0:02:59.6]}
10. f4 {[%clk 0:02:51.7]} 10... d5 {[%clk 0:02:59.6]} 11. e5 {[%clk 0:02:51.4]}
11... O-O {[%clk 0:02:58.7]} 12. Kh1 {[%clk 0:02:47.8]} 12... Bb7 {[%clk
0:02:51.6]} 13. Be3 {[%clk 0:02:47.5]} 13... Qa5 {[%clk 0:02:42.2]} 14. a3
{[%clk 0:02:38.6]} 14... c5 {[%clk 0:02:37]} 15. b4 {[%clk 0:02:38.6]} 15...
cxb4 {[%clk 0:02:33.3]} 16. axb4 {[%clk 0:02:39.5]} 16... Qxb4 {[%clk
0:02:25.2]} 17. Ne2 {[%clk 0:02:19.9]} 17... d4 {[%clk 0:02:03.4]} 18. Qxd4
{[%clk 0:02:14.9]} 18... Bxg2+ {[%clk 0:02:02.1]} 19. Kxg2 {[%clk 0:02:15.8]}
19... Qb7+ {[%clk 0:02:01.3]} 20. Kg1 {[%clk 0:02:10.5]} 20... Rfd8 {[%clk
0:01:52.6]} 21. Qa4 {[%clk 0:01:50.1]} 21... Nf5 {[%clk 0:01:38.1]} 22. Bf2
{[%clk 0:01:49]} 22... h5 {[%clk 0:01:25.3]} 23. Nd4 {[%clk 0:01:35.1]} 23...
Bf8 {[%clk 0:01:05]} 24. Nxf5 {[%clk 0:01:24.9]} 24... gxf5 {[%clk 0:01:05.9]}
25. Rad1 {[%clk 0:01:24.2]} 25... Be7 {[%clk 0:00:46]} 26. Qc4 {[%clk
0:01:22.1]} 26... h4 {[%clk 0:00:43.3]} 27. Qe2 {[%clk 0:01:20.9]} 27... h3
{[%clk 0:00:41]} 28. Be3 {[%clk 0:01:16.8]} 28... Qe4 {[%clk 0:00:40.4]} 29. Rd3
{[%clk 0:01:12.6]} 29... Bc5 {[%clk 0:00:36.7]} 30. Rf2 {[%clk 0:00:32.5]} 30...
Rxd3 {[%clk 0:00:32.1]} 0-1

[Event "Late-Titled-Tuesday-Blitz-June-18-2024"]
[Site "Chess.com"]
[Date "2024.06.18"]
[Round "1"]
[White "Malev212"]
[Black "Sacbutt"]
[Result "1-0"]
[WhiteElo "2636"]
[BlackElo "2319"]
[TimeControl "180+1"]
[EndTime "14:06:16 PDT"]
[Termination "Malev212 won by resignation"]

1. e4 {[%clk 0:02:59.7]} 1... c5 {[%clk 0:02:57.9]} 2. d4 {[%clk 0:02:59.4]}
2... cxd4 {[%clk 0:02:57.8]} 3. Qxd4 {[%clk 0:02:59.8]} 3... Nc6 {[%clk
0:02:57.2]} 4. Qd3 {[%clk 0:02:59.5]} 4... d6 {[%clk 0:02:55.4]} 5. Nc3 {[%clk
0:02:57.1]} 5... g6 {[%clk 0:02:54]} 6. Nf3 {[%clk 0:02:53]} 6... Bg7 {[%clk
0:02:53.8]} 7. Be2 {[%clk 0:02:52.9]} 7... Nf6 {[%clk 0:02:53.3]} 8. Nd5 {[%clk
0:02:46.1]} 8... O-O {[%clk 0:02:40.4]} 9. c3 {[%clk 0:02:45.9]} 9... Nxd5
{[%clk 0:02:20.9]} 10. exd5 {[%clk 0:02:44.9]} 10... Ne5 {[%clk 0:02:21.2]} 11.
Nxe5 {[%clk 0:02:43.7]} 11... Bxe5 {[%clk 0:02:18.6]} 12. Bh6 {[%clk 0:02:38.2]}
12... Re8 {[%clk 0:02:17.3]} 13. O-O {[%clk 0:02:29.5]} 13... Qb6 {[%clk
0:02:14.2]} 14. b3 {[%clk 0:02:16.8]} 14... Bf5 {[%clk 0:02:12.2]} 15. Qd2
{[%clk 0:02:13.9]} 15... Qa5 {[%clk 0:02:01.4]} 16. Rac1 {[%clk 0:02:08.1]}
16... a6 {[%clk 0:01:56.5]} 17. f4 {[%clk 0:01:37.6]} 17... Bh8 {[%clk
0:01:46.8]} 18. g4 {[%clk 0:01:36.3]} 18... Bd7 {[%clk 0:01:36.7]} 19. f5 {[%clk
0:01:28.1]} 19... Be5 {[%clk 0:01:24.8]} 20. b4 {[%clk 0:01:24]} 20... Qb6+
{[%clk 0:01:16.6]} 21. Be3 {[%clk 0:01:22.2]} 21... Qd8 {[%clk 0:01:09.5]} 22.
c4 {[%clk 0:01:20.3]} 22... Rf8 {[%clk 0:00:54.8]} 23. c5 {[%clk 0:01:19.1]}
23... a5 {[%clk 0:00:47.1]} 24. c6 {[%clk 0:01:18.3]} 24... bxc6 {[%clk
0:00:42.5]} 25. dxc6 {[%clk 0:01:18.3]} 25... Bc8 {[%clk 0:00:42.3]} 26. b5
{[%clk 0:01:18.4]} 26... d5 {[%clk 0:00:31.9]} 27. Bd4 {[%clk 0:01:07.7]} 27...
Qd6 {[%clk 0:00:24.4]} 28. Bxe5 {[%clk 0:01:02.6]} 28... Qxe5 {[%clk 0:00:25.3]}
29. b6 {[%clk 0:01:02.1]} 29... Ba6 {[%clk 0:00:19.9]} 30. Bxa6 {[%clk
0:00:57.8]} 30... Rxa6 {[%clk 0:00:20.8]} 31. c7 {[%clk 0:00:55.3]} 1-0

[Event "Late-Titled-Tuesday-Blitz-June-18-2024"]
[Site "Chess.com"]
[Date "2024.06.18"]
[Round "1"]
[White "Masterisback04"]
[Black "Artem_Koval"]
[Result "0-1"]
[WhiteElo "2094"]
[BlackElo "2561"]
[TimeControl "180+1"]
[EndTime "14:06:18 PDT"]
[Termination "Artem_Koval won on time"]

1. e4 {[%clk 0:02:58.5]} 1... c5 {[%clk 0:02:59.1]} 2. Nf3 {[%clk 0:02:58.4]}
2... d6 {[%clk 0:02:59.6]} 3. d4 {[%clk 0:02:58.3]} 3... cxd4 {[%clk 0:03:00.5]}
4. Nxd4 {[%clk 0:02:58.4]} 4... Nf6 {[%clk 0:03:01.1]} 5. Nc3 {[%clk 0:02:58.5]}
5... a6 {[%clk 0:03:01.7]} 6. Be3 {[%clk 0:02:58.1]} 6... e5 {[%clk 0:03:01.7]}
7. Nb3 {[%clk 0:02:57.9]} 7... Be6 {[%clk 0:03:02.4]} 8. f3 {[%clk 0:02:57]}
8... Be7 {[%clk 0:03:00]} 9. Qd2 {[%clk 0:02:56.9]} 9... Nbd7 {[%clk 0:02:59.5]}
10. O-O-O {[%clk 0:02:55.8]} 10... O-O {[%clk 0:02:59.1]} 11. g4 {[%clk
0:02:31.1]} 11... b5 {[%clk 0:02:58.9]} 12. Kb1 {[%clk 0:02:23.2]} 12... b4
{[%clk 0:02:57.9]} 13. Nd5 {[%clk 0:02:22.2]} 13... Bxd5 {[%clk 0:02:56.6]} 14.
exd5 {[%clk 0:02:20.3]} 14... a5 {[%clk 0:02:57.1]} 15. g5 {[%clk 0:01:29.7]}
15... Ne8 {[%clk 0:02:55.4]} 16. h4 {[%clk 0:01:10.4]} 16... Nc7 {[%clk
0:02:53.8]} 17. h5 {[%clk 0:01:03.3]} 17... a4 {[%clk 0:02:53.4]} 18. Nc1 {[%clk
0:01:03.2]} 18... f5 {[%clk 0:02:45.4]} 19. gxf6 {[%clk 0:01:00]} 19... Nxf6
{[%clk 0:02:44.8]} 20. Bh3 {[%clk 0:00:45.9]} 20... Kh8 {[%clk 0:02:42.6]} 21.
Rdg1 {[%clk 0:00:45.1]} 21... Ncxd5 {[%clk 0:02:36.3]} 22. Be6 {[%clk
0:00:33.5]} 22... Ra5 {[%clk 0:02:08.5]} 23. Qg2 {[%clk 0:00:20.9]} 23... Ne8
{[%clk 0:02:04.1]} 24. Bh6 {[%clk 0:00:16]} 24... Bf6 {[%clk 0:01:59.1]} 25.
Bxg7+ {[%clk 0:00:14.4]} 25... Nxg7 {[%clk 0:01:53.6]} 26. Bxd5 {[%clk
0:00:04.8]} 26... Rxd5 {[%clk 0:01:54.5]} 27. f4 {[%clk 0:00:04.7]} 27... e4
{[%clk 0:01:34.4]} 28. Qxe4 {[%clk 0:00:03.9]} 28... Rd4 {[%clk 0:01:34.8]} 29.
Qg2 {[%clk 0:00:02.8]} 29... a3 {[%clk 0:01:33.3]} 30. b3 {[%clk 0:00:02.2]}
30... Qc8 {[%clk 0:01:27.3]} 31. Rh3 {[%clk 0:00:01.3]} 31... Rd2 {[%clk
0:01:06.3]} 0-1